Workbook

Sheet imposta ed aliquote
A1: CALCOLO IMPOSTA LORDA, NETTA ED ALIQUOTA MASSIMA RELATIVA AD UN CERTO ESERCIZIO ED ALIQUOTA MEDIA ULTIMI DUE ESERCIZI PRECEDENTI A QUEST'ULTIMO PER LAVORATORI DIPENDENTI ED ASSIMILATI | M1: 800 | N1: 900 | O1: 220 | P1: 200 | Q1: 95000 | R1: 15000
A2: PER CALCOLO IMPOSTA LORDA ED ALIQUOTA MASSIMA | C2: ="reddito imponibile netto esercizio " & IF($G$4<>"",$G$4,"…..") -> reddito imponibile netto esercizio ….. | D2: ="ire lorda esercizio " & IF($G$4<>"",$G$4,"…..") -> ire lorda esercizio ….. | E2: ="aliquota massima esercizio " & IF($G$4<>"",$G$4,"…..") -> aliquota massima esercizio ….. | G2: esercizio | H2: ="reddito imponibile netto esercizio " & IF($G$4<>"",$G$4,"…..") -> reddito imponibile netto esercizio …..
C3: =IF($H$4<>"",$H$4,"") ->  | D3: =IF($C$3<>"",irelordaannua($C$3,ROW($B$17)+1,COLUMN($B$17)),"") ->  | E3: =IF($C$3<>"",aliquotamassima($C$3,ROW($B$17),COLUMN($B$17)),"") -> 
A4: ="CALCOLO ALIQUOTA MEDIA BIENNIO " & IF($G$4<>"",$G$4-2,"…..") & IF($G$4<>"","-","") & IF($G$4<>"",$G$4-1,"…..") -> CALCOLO ALIQUOTA MEDIA BIENNIO …..…..
A5: ="reddito imponibile netto esercizio " & IF($G$4<>"",$G$4-2,"…..") -> reddito imponibile netto esercizio ….. | B5: ="reddito imponibile netto esercizio " & IF($G$4<>"",$G$4-1,"…..") -> reddito imponibile netto esercizio ….. | C5: ="reddito medio biennio "& IF($G$4<>"",$G$4-2,"…..") & IF($G$4<>"","-","") & IF($G$4<>"",$G$4-1,"…..") -> reddito medio biennio …..….. | D5: ="ire corrispondente al reddito medio del biennio" -> ire corrispondente al reddito medio del biennio | E5: ="aliquota media da applicare nell'esercizio " & IF($G$4<>"",$G$4,"…..") -> aliquota media da applicare nell'esercizio ….. | G5: ="reddito imponibile netto esercizio " & IF($G$4<>"",$G$4-2,"…..") -> reddito imponibile netto esercizio ….. | H5: ="reddito imponibile netto esercizio " & IF($G$4<>"",$G$4-1,"…..") -> reddito imponibile netto esercizio …..
A6: =IF($G$6<>"",$G$6,"") ->  | B6: =IF($H$6<>"",$H$6,"") ->  | C6: =IF(SUM(A6:B6)/2<>0,SUM(A6:B6)/2,"") ->  | D6: =IF($C$6<>"",irexaliqmedia($C$6,ROW($B$17)+1,COLUMN($B$17)),"") ->  | E6: =IF(C6="",B17,ROUND($D6/C6,4)) -> 0.23
A7: ="CALCOLO IMPOSTA NETTA ESERCIZIO " & IF($G$4<>"",$G$4,"…..") -> CALCOLO IMPOSTA NETTA ESERCIZIO ….. | P7: =O6-O7 -> 0
A8: reddito imponibile netto | B8: Detrazione coniuge (SI/NO) | C8: n.fig.tot. | D8: n.fig.<= 3 anni non handicap | E8: n.fig.>.3 anni e hand. | F8: n.fig.<= 3 anni e hand. | G8: % detraz (50%, 100%, altra perc.) | H8: n.mesi carico | I8: altre persone | J8: detrazione lav. dip. | K8: giorni di lavoro dipendente
A9: =IF($C$3<>"",$C$3,"") -> 
A10: ire lorda annua | E10: =IF($A$9<>"",irexaliqmedia($A$9,ROW($B$17)+1,COLUMN($B$17)),"") -> 
A11: Ammontare detrazione coniuge | E11: =IF(AND($A$9<>"",UPPER($B$9)="SI"),INDEX($N$24:$N$34,MATCH($A$9,$M$24:$M$34,1)+1,1),0) -> 0
A12: Ammontare detrazione figli | E12: =SUM($M$38:$N$47) -> 0
A13: Ammontare detrazione altre | E13: =IF(AND($A$9<>"",$I$9<>""),IF(OR((80000-$A$9)/80000<=0,(80000-$A$9)/80000=1),0,$I$9*$A$50*(80000-$A$9)/80000),0) -> 0
A14: Ammontare detrazione lavoro dip. | E14: =IF(AND($A$9<>"",UPPER($J$9)="SI"),INDEX($N$52:$N$62,MATCH($A$9,$M$52:$M$62,1)+1),0) -> 0
A15: ire netta annua | E15: =IF($E$10<>"",IF($E$10-$E$11-$E$12-$E$13-$E$14<=0,0,$E$10-$E$11-$E$12-$E$13-$E$14),"") -> 
A16: ="Aliquote e scaglioni IRE " & IF($G$4<>"",$G$4,"…..") -> Aliquote e scaglioni IRE …..
A17: aliquote: | B17: 0.23 | C17: 0.27 | D17: 0.38 | E17: 0.41 | F17: 0.43
A18: scaglioni (fino a): | B18: 15000 | C18: 28000 | D18: 55000 | E18: 75000 | F18: 99999999
A19: Aliquote e scaglioni IRE:
A20: aliquote: | B20: 0.23 | C20: 0.27 | D20: 0.38 | E20: 0.41 | F20: 0.43
A21: scaglioni (fino a): | B21: 15000 | C21: 28000 | D21: 55000 | E21: 75000 | F21: (oltre 75.000)
A22: DETRAZIONI PER CARICO DI FAMIGLIA (Coniuge, figli o altri familiari a carico se con reddito annuo <= 2.840,51)
A23: Coniuge
A24: scaglioni di reddito | D24: 0 | E24: detrazione teorica | F24: detrazione effettiva | I24: note | M24: 0 | N24: 0
A25: da | B25: 0 | C25: fino a | D25: 15000 | E25: 800 | F25: 800 - | G25: 110 | H25: r.c. x ----------- 15.000,00 | I25: se rapporto = 1 allora detrazione = 690 se rapporto = 0 allora detrazione = 0,00 | M25: =D25+1 -> 15001 | N25: =IF(AND($A$9>$B$25,$A$9<=$D$25),IF($A$9/$D$25=0,0,IF($A$9/$D$25=1,690,$E$25-$G$25*$C$3/$D$25)),0) -> 0 | O25: =N25/365*211 -> 0
A26: oltre | B26: 15000 | C26: fino a | D26: 29000 | F26: 690 | M26: =D26+1 -> 29001 | N26: =IF(AND($A$9>$B$26,$A$9<=$D$26),$F$26,0) -> 0
A27: oltre | B27: 29000 | C27: fino a | D27: 29200 | F27: 700 | I27: 690,00 + | J27: 10 | M27: 29201 | N27: =IF(AND($A$9>$B$27,$A$9<=$D$27),$F$27,0) -> 0
A28: oltre | B28: 29200 | C28: fino a | D28: 34700 | F28: 710 | I28: 690,00 + | J28: 20 | M28: 34701 | N28: =IF(AND($A$9>$B$28,$A$9<=$D$28),$F$28,0) -> 0
A29: oltre | B29: 34700 | C29: fino a | D29: 35000 | F29: 720 | I29: 690,00 + | J29: 30 | M29: 35001 | N29: =IF(AND($A$9>$B$29,$A$9<=$D$29),$F$29,0) -> 0
A30: oltre | B30: 35000 | C30: fino a | D30: 35100 | F30: 710 | I30: 690,00 + | J30: 20 | M30: 35101 | N30: =IF(AND($A$9>$B$30,$A$9<=$D$30),$F$30,0) -> 0
A31: oltre | B31: 35100 | C31: fino a | D31: 35200 | F31: 700 | I31: 690,00 + | J31: 10 | M31: 35201 | N31: =IF(AND($A$9>$B$31,$A$9<=$D$31),$F$31,0) -> 0
A32: oltre | B32: 35200 | C32: fino a | D32: 40000 | F32: 690 | M32: 40001 | N32: =IF(AND($A$9>$B$32,$A$9<=$D$32),$F$32,0) -> 0
A33: oltre | B33: 40000 | C33: fino a | D33: 80000 | F33: 690 | G33: 80.000,00 - r.c. x ------------------- 40.000,00 | I33: se rapporto = 0 allora detrazione = 0,00 | M33: 80001 | N33: =IF(AND($A$9>$B$33,$A$9<=$D$33),IF(($D$33-$A$9)/$B$33=0,0,$F$33*($D$33-$A$9)/$B$33),0) -> 0
A34: oltre | B34: 80000 | D34: 99999 | I34: non spetta alcuna detrazione | M34: 100000 | N34: 0
A35: Figli
A36: fino a 3 figli
C37: detrazioni teoriche | D37: detrazione spettante per figlio unico | G37: detrazione spettante per ciascun figlio successivo al primo | L37: note
A38: normale | C38: =$M$1 -> 800 | D38: 800 | E38: 95.000 - r.c. x -------------- 95.000 | G38: =C38 -> 800 | H38: 95.000 + 15.000 x (n.fig.tot. -1) - r.c. x ---------------------------------------------- 95.000 + 15.000 x (n.fig.tot. -1) | L38: se il rapporto indicato è <= 0 oppure è = 1, allora detraz.spettante =0 | M38: =IF($A$9<>"",IF($C$9<=3,IF(AND($C$9=1,$C$9-$D$9-$E$9-$F$9=1,$C$38*(95000-$A$9)/95000<>1,$C$38*(95000-$A$9)/95000>0),$C$38*(95000-$A$9)/95000,0),0),"") ->  | N38: =IF($A$9<>"",IF($C$9<=3,IF($C$9>1,IF(AND((95000+15000*($C$9-1)-$A$9)/(95000+15000*($C$9-1))<>1,(95000+15000*($C$9-1)-$A$9)/(95000+15000*($C$9-1))>0),$G$38*(95000+15000*($C$9-1)-$A$9)/(95000+15000*($C$9-1))*($C$9-$D$9-$E$9-$F$9),0),0),0),"") -> 
A39: minore di 3 anni non portatori handicap | C39: =$N$1 -> 900 | D39: 900 | E39: 95.000 - r.c. x -------------- 95.000 | G39: =C39 -> 900 | H39: 95.000 + 15.000 x (n.fig.tot. -1) - r.c. x ---------------------------------------------- 95.000 + 15.000 x (n.fig.tot. -1) | M39: =IF($A$9<>"",IF($C$9<=3,IF(AND($C$9=1,$D$9=1,(95000-$A$9)/95000>0,(95000-$A$9)/95000<>1),$C$39*(95000-$A$9)/95000,0),0),"") ->  | N39: =IF($A$9<>"",IF($C$9<=3,IF(AND($C$9>1,$D$9<>0,(95000+15000*($C$9-1)-$A$9)/(95000+15000*($C$9-1))>0,(95000+15000*($C$9-1)-$A$9)/(95000+15000*($C$9-1))<>1),$G$39*(95000+15000*($C$9-1)-$A$9)/(95000+15000*($C$9-1))*$D$9,0),0),"") -> 
A40: maggiore di 3 anni e portatore di handicap | C40: =$M$1+$O$1 -> 1020 | D40: 1020 | E40: 95.000 - r.c. x -------------- 95.000 | G40: =C40 -> 1020 | H40: 95.000 + 15.000 x (n.fig.tot. -1) - r.c. x ---------------------------------------------- 95.000 + 15.000 x (n.fig.tot. -1) | M40: =IF($A$9<>"",IF($C$9<=3,IF(AND($C$9=1,$E$9=1,(95000-$A$9)/95000>0,(95000-$A$9)/95000<>1),$C$39*(95000-$A$9)/95000,0),0),"") ->  | N40: =IF($A$9<>"",IF($C$9<=3,IF(AND($C$9>1,$E$9<>0,(95000+15000*($C$9-1)-$A$9)/(95000+15000*($C$9-1))>0,(95000+15000*($C$9-1)-$A$9)/(95000+15000*($C$9-1))<>1),$G$39*(95000+15000*($C$9-1)-$A$9)/(95000+15000*($C$9-1))*$E$9,0),0),"") -> 
A41: minore di 3 anni e portatore di handicap | C41: =$C$39+$O$1 -> 1120 | D41: 1120 | E41: 95.000 - r.c. x -------------- 95.000 | G41: =C41 -> 1120 | H41: 95.000 + 15.000 x (n.fig.tot. -1) - r.c. x ---------------------------------------------- 95.000 + 15.000 x (n.fig.tot. -1) | M41: =IF($A$9<>"",IF($C$9<=3,IF(AND($C$9=1,$F$9=1,(95000-$A$9)/95000>0,(95000-$A$9)/95000<>1),$C$39*(95000-$A$9)/95000,0),0),"") ->  | N41: =IF($A$9<>"",IF($C$9<=3,IF(AND($C$9>1,$F$9<>0,(95000+15000*($C$9-1)-$A$9)/(95000+15000*($C$9-1))>0,(95000+15000*($C$9-1)-$A$9)/(95000+15000*($C$9-1))<>1),$G$39*(95000+15000*($C$9-1)-$A$9)/(95000+15000*($C$9-1))*$F$9,0),0),"") -> 
A42: figli superiore a 3 (per i figli superiori a 3 le detrazioni teoriche aumentano di 200 € per ciascun figlio a partire dal 1°)
C43: detrazioni teoriche | D43: detrazione spettante per figlio unico | G43: detrazione spettante per ciascun figlio successivo al primo | L43: note
A44: normale | C44: =$M$1+$P$1 -> 1000 | D44: 1000 | E44: 95.000 - r.c. x -------------- 95.000 | G44: =C44 -> 1000 | H44: 95.000 + 15.000 x (n.fig.tot. -1) - r.c. x --------------------------------------------- 95.000 + 15.000 x (n.fig.tot. -1) | L44: se il rapporto indicato è <= 0 oppure è = 1, allora detraz.spettante =0 | M44: =IF($A$9<>"",IF($C$9>3,IF(AND($C$9=1,$C$9-$D$9-$E$9-$F$9=1,$C$44*(95000-$A$9)/95000<>1,$C$44*(95000-$A$9)/95000>0),$C$44*(95000-$A$9)/95000,0),0),"") ->  | N44: =IF($A$9<>"",IF($C$9>3,IF($C$9>1,IF(AND((95000+15000*($C$9-1)-$A$9)/(95000+15000*($C$9-1))<>1,(95000+15000*($C$9-1)-$A$9)/(95000+15000*($C$9-1))>0),$G$44*(95000+15000*($C$9-1)-$A$9)/(95000+15000*($C$9-1))*($C$9-$D$9-$E$9-$F$9),0),0),0),"") -> 
A45: minore di 3 anni non portatori handicap | C45: =$N$1+$P$1 -> 1100 | D45: 1100 | E45: 95.000 - r.c. x -------------- 95.000 | G45: =C45 -> 1100 | H45: 95.000 + 15.000 x (n.fig.tot. -1) - r.c. x --------------------------------------------- 95.000 + 15.000 x (n.fig.tot. -1) | M45: =IF($A$9<>"",IF($C$9>3,IF(AND($C$9=1,$D$9=1,(95000-$A$9)/95000>0,(95000-$A$9)/95000<>1),$C$45*(95000-$A$9)/95000,0),0),"") ->  | N45: =IF($A$9<>"",IF($C$9>3,IF(AND($C$9>1,$D$9<>0,(95000+15000*($C$9-1)-$A$9)/(95000+15000*($C$9-1))>0,(95000+15000*($C$9-1)-$A$9)/(95000+15000*($C$9-1))<>1),$G$45*(95000+15000*($C$9-1)-$A$9)/(95000+15000*($C$9-1))*$D$9,0),0),"") -> 
A46: maggiore di 3 anni e portatore di handicap | C46: =$M$1+$O$1+$P$1 -> 1220 | D46: 1220 | E46: 95.000 - r.c. x -------------- 95.000 | G46: =C46 -> 1220 | H46: 95.000 + 15.000 x (n.fig.tot. -1) - r.c. x --------------------------------------------- 95.000 + 15.000 x (n.fig.tot. -1) | M46: =IF($A$9<>"",IF($C$9>3,IF(AND($C$9=1,$E$9=1,(95000-$A$9)/95000>0,(95000-$A$9)/95000<>1),$C$46*(95000-$A$9)/95000,0),0),"") ->  | N46: =IF($A$9<>"",IF($C$9>3,IF(AND($C$9>1,$E$9<>0,(95000+15000*($C$9-1)-$A$9)/(95000+15000*($C$9-1))>0,(95000+15000*($C$9-1)-$A$9)/(95000+15000*($C$9-1))<>1),$G$46*(95000+15000*($C$9-1)-$A$9)/(95000+15000*($C$9-1))*$E$9,0),0),"") -> 
A47: minore di 3 anni e portatore di handicap | C47: =$C$39+$O$1+$P$1 -> 1320 | D47: 1320 | E47: 95.000 - r.c. x -------------- 95.000 | G47: =C47 -> 1320 | H47: 95.000 + 15.000 x (n.fig.tot. -1) - r.c. x --------------------------------------------- 95.000 + 15.000 x (n.fig.tot. -1) | M47: =IF($A$9<>"",IF($C$9>3,IF(AND($C$9=1,$F$9=1,(95000-$A$9)/95000>0,(95000-$A$9)/95000<>1),$C$47*(95000-$A$9)/95000,0),0),"") ->  | N47: =IF($A$9<>"",IF($C$9>3,IF(AND($C$9>1,$F$9<>0,(95000+15000*($C$9-1)-$A$9)/(95000+15000*($C$9-1))>0,(95000+15000*($C$9-1)-$A$9)/(95000+15000*($C$9-1))<>1),$G$47*(95000+15000*($C$9-1)-$A$9)/(95000+15000*($C$9-1))*$F$9,0),0),"") -> 
A48: Altre persone
A49: detrazione teorica | B49: detrazione spettante per ciascun familiare | E49: note
A50: 750 | B50: 750 | C50: 80.000 - r.c. x -------------- 80.000 | E50: se il rapporto indicato è <= 0 oppure è = 1, allora detraz.spettante =0
A51: Detrazione per lavoro dipendente
A52: scaglioni di reddito | D52: 0 | E52: detrazione teorica | F52: detrazione effettiva (x 365 giorni) | I52: note | M52: 0 | N52: 0
A53: da | B53: 0 | C53: fino a | D53: 8000 | F53: 1840 | I53: se il periodo di lavoro nell'anno è inferiore a 365 giorni, allora la detrazione è pari a 690,00 | M53: =D53+1 -> 8001 | N53: =IF(AND($A$9>$B$53,$A$9<=$D$53),F53,0) -> 0
A54: oltre | B54: 8000 | C54: fino a | D54: 15000 | E54: 1338 | F54: 1338 | G54: 15.000 - r.c. + 502 x ---------------- 7.000,00 | I54: se il risultato del rapporto indicato è > 0, allora si considerano le prime 4 cifre decimali | M54: =D54+1 -> 15001 | N54: =IF(AND($A$9>$B$54,$A$9<=$D$54),(1338+502*((15000-$A$9)/7000))/365*$K$9,0) -> 0 | O54: =N54/365*211 -> 0
A55: oltre | B55: 15000 | C55: fino a | D55: 23000 | E55: 1338 | F55: 1338 | G55: 55.000 - r.c. x -------------- 40.000,00 | M55: 23001 | N55: =IF(AND($A$9>$B$55,$A$9<=$D$55),(1338*((55000-$A$9)/40000))/365*$K$9,0) -> 0
A56: oltre | B56: 23000 | C56: fino a | D56: 24000 | E56: 1338 | F56: 1338 | G56: 55.000 - r.c. x -------------- 40.000,00 | M56: 24001 | N56: =IF(AND($A$9>$B$56,$A$9<=$D$56),(1338*((55000-$A$9)/40000))/365*$K$9,0) -> 0
A57: oltre | B57: 24000 | C57: fino a | D57: 25000 | E57: 1338 | F57: 1338 | G57: 55.000 - r.c. x -------------- 40.000,00 | M57: 25001 | N57: =IF(AND($A$9>$B$57,$A$9<=$D$57),(1338*((55000-$A$9)/40000))/365*$K$9,0) -> 0
A58: oltre | B58: 25000 | C58: fino a | D58: 26000 | E58: 1338 | F58: 1338 | G58: 55.000 - r.c. x -------------- 40.000,00 | M58: 26001 | N58: =IF(AND($A$9>$B$58,$A$9<=$D$58),(1338*((55000-$A$9)/40000))/365*$K$9,0) -> 0
A59: oltre | B59: 26000 | C59: fino a | D59: 27700 | E59: 1338 | F59: 1338 | G59: 55.000 - r.c. x -------------- 40.000,00 | M59: 27701 | N59: =IF(AND($A$9>$B$59,$A$9<=$D$59),(1338*((55000-$A$9)/40000))/365*$K$9,0) -> 0
A60: oltre | B60: 27700 | C60: fino a | D60: 28000 | E60: 1338 | F60: 1338 | G60: 55.000 - r.c. x -------------- 40.000,00 | M60: 28001 | N60: =IF(AND($A$9>$B$60,$A$9<=$D$60),(1338*((55000-$A$9)/40000))/365*$K$9,0) -> 0
A61: oltre | B61: 28000 | C61: fino a | D61: 55000 | E61: 1338 | F61: 1338 | G61: 55.000 - r.c. x -------------- 40.000,00 | M61: 55001 | N61: =IF(AND($A$9>$B$61,$A$9<=$D$61),(1338*((55000-$A$9)/40000))/365*$K$9,0) -> 0
A62: oltre | B62: 55000 | D62: 99999 | I62: non spetta alcuna detrazione | M62: 100000 | N62: 0
